[Event "Saint Louis Super Swiss 2023"]
[Site "Saint Louis"]
[Date "2023.03.16"]
[Round "7.10"]
[White "Grabinsky, Aaron"]
[Black "Hakobyan, Aram"]
[Result "0-1"]
[ECO "C69"]
[WhiteElo "2405"]
[BlackElo "2620"]
[Annotator "TA"]
[PlyCount "94"]
[EventDate "2023.03.12"]
[EventType "swiss"]
[EventCountry "USA"]
[TimeControl "5400+30"]

{[%evp 12,94,33,3,13,-11,0,6,20,0,1,0,18,-20,-1,0,0,0,0,-8,15,-14,-12,-53,-25,-43,-21,-47,-53,-82,-88,-144,-59,-38,-38,-81,-73,-86,-81,-81,-85,-85,-95,-83,-86,-93,-91,-87,-85,-81,-85,-83,-83,-85,-83,-83,-60,-61,-60,-60,-22,-20,-18,-17,-18,-19,-14,-183,-184,-197,-207,-200,-193,-290,-238,-273,-197,-430,-415,-1955,-1851,-5600,-5110,-29984,-1314]} 1. e4 {[%emt 0:06:54]} e5 {[%emt 0:00:08]} 2. Nf3 {[%emt 0:00:03]} Nc6 {[%emt 0:00:08]} 3. Bb5 {[%emt 0:00:03]} a6 {[%emt 0:00:39]} 4. Bxc6 {[%emt 0:00:05]} dxc6 {[%emt 0:00:07]} 5. O-O {[%emt 0:00:04]} f6 {[%emt 0:06:26]} 6. d4 {[%emt 0:02:12]} Bg4 {[%emt 0:06:43]} 7. c3 {[%emt 0:06:31]} Ne7 {[%emt 0:05:39] C69: Ruy Lopez: Exchange Variation with 5 0-0 f6.} 8. Be3 {[%emt 0:01:56]} Ng6 {[%emt 0:06:27]} 9. Nbd2 {[%emt 0:04:29]} Bd6 {[%emt 0:03:35] The position is equal.} 10. h3 {[%emt 0:01:20]} Be6 {[%emt 0:05:45]} 11. c4 {[%emt 0:06:59]} O-O {[%emt 0:06:30] [#]} 12. d5 $146 {[%emt 0:01:33]} (12. c5 $5 {[%cal Rc5d6]} Be7 13. Qc2 $11) ({Predecessor:} 12. c5 Be7 13. Qa4 Qe8 14. Rad1 Rf7 15. Qb4 b5 16. Qc3 a5 17. b3 f5 18. dxe5 fxe4 19. Nxe4 Rxf3 20. gxf3 {1-0 Novak,B-Brancaleone,S W-ch WS/O/098 email 2006}) 12... cxd5 {[%emt 0:00:45]} 13. cxd5 {[%emt 0:01:38]} Bd7 {[%emt 0:01:40]} 14. Rc1 {[%emt 0:10:38]} h6 {[%emt 0:02:58]} 15. g4 {[%emt 0:05:35]} b5 {[%emt 0:09:24]} 16. Kg2 {[%emt 0:01:37]} Qe8 {[%emt 0:01:21]} 17. Rh1 {[%emt 0:03:41]} Rd8 {[%emt 0:01:43]} 18. Nb3 {[%emt 0:04:22] [#]} h5 $1 {[%emt 0:04:58]} 19. gxh5 {[%emt 0:06:17]} (19. Nfd2 c6) 19... Nf4+ $1 {[%emt 0:02:16]} 20. Bxf4 {[%emt 0:00:12]} exf4 {[%emt 0:00:04]} 21. Nc5 {[%emt 0:02:30]} ({White should try} 21. Nfd4) 21... Bxc5 {[%emt 0:04:14]} (21... Qxh5 $17 22. Nxd7 Rxd7) 22. Rxc5 $15 {[%emt 0:00:09]} Qxe4 {[%emt 0:00:47][%cal Od7e6]} 23. Qb3 {[%emt 0:03:39]} Rf7 {[%emt 0:02:08]} 24. Re1 {[%emt 0:04:41]} Qf5 {[%emt 0:00:09][%csl LRh3,LRh5]} 25. Nd4 {[%emt 0:00:33]} Qg5+ {[%emt 0:02:23]} (25... Qxh5 $6 26. Qf3 Qxf3+ 27. Kxf3 $11) 26. Kh2 {[%emt 0:01:33]} Qh4 {[%emt 0:03:50]} 27. Rc2 {[%emt 0:01:25]} f3 {[%emt 0:02:01]} 28. Ne6 {[%emt 0:01:16] [#]} Bxe6 $1 {[%emt 0:01:34]} 29. dxe6 {[%emt 0:00:47]} Qf4+ {[%emt 0:00:02]} 30. Kh1 {[%emt 0:00:12]} Re7 {[%emt 0:00:04][%cal Bf7e7,Be7e6,Be6g6][%mdl 32] Hoping for ...Qf5.} 31. Rc3 {[%emt 0:01:20]} Qd2 $40 {[%emt 0:00:26][%csl LRe1,LRf2][%mdl 128] Black attacks with force.} 32. Rf1 {[%emt 0:01:40][%cal Oc3c7]} Qe2 {[%emt 0:01:14]} 33. Kg1 {[%emt 0:00:12]} Qxe6 {[%emt 0:05:33] Black is much more active.} (33... Rxe6 $2 34. Re3 (34. Rxf3 Kh7 $17) 34... Rdd6 35. Rxe2 $18 (35. Re1 Qd2 $17)) (33... c5 {keeps more tension.} 34. Re3 Qd2 35. h6 Rd5) 34. Qxe6+ {[%emt 0:03:07]} Rxe6 {[%emt 0:00:02]} 35. Rxc7 $17 {[%emt 0:00:14][%cal Oh5h6][%mdl 4096] Endgame KRR-KRR} Rd2 {[%emt 0:00:16]} 36. h6 {[%emt 0:00:38]} gxh6 {[%emt 0:00:39][%cal Of6f5]} 37. Ra7 {[%emt 0:00:58]} f5 {[%emt 0:02:47]} 38. Rc1 {[%emt 0:01:41] Rc8+ would kill now.} Rg6+ {[%emt 0:00:03]} (38... Rxb2 $2 {leads to mate.} 39. Rc8+) 39. Kf1 $2 {[%emt 0:03:09] [#] White does not recover from this.} (39. Kh1 $1 $11 {and White has nothing to worry.} Rd8 40. a3) 39... Rc6 $3 $19 {[%emt 0:02:42][%cal Rc6c1][%mdl 576] Deflection, Back Rank} 40. Re1 {[%emt 0:00:50][%cal Re1e8]} (40. Ra8+ Kg7) 40... Kf8 {[%emt 0:00:24] Prevents Re8+. Threatens to win with ...Rcc2.} (40... Rxb2 $2 41. Re8#) 41. Kg1 {[%emt 0:02:17]} Rxb2 {[%emt 0:03:12]} 42. h4 {[%emt 0:01:00]} (42. Re3 {is a better defense.}) 42... h5 {[%emt 0:03:40]} 43. a3 {[%emt 0:03:06]} f4 {[%emt 0:01:03]} 44. Rd7 $2 {[%emt 0:02:22]} (44. Rd1 {keeps fighting.} Ke8 45. Rh7) 44... Rg6+ {[%emt 0:02:12][%mdl 64] Deflection} 45. Kh1 {[%emt 0:01:06]} (45. Kf1 $142 Rg2 46. Rc1 Rgxf2+ 47. Kg1) 45... Rxf2 {[%emt 0:00:19] ( -> ...Rg3)} 46. Rc1 {[%emt 0:00:22]} Re2 {[%emt 0:00:47]} 47. Rd5 {[%emt 0:02:45]} f2 {[%emt 0:00:42] Weighted Error Value: White=0.61/Black=0.11 (very precise)} (47... Rgg2 $142 48. Rg5 Rh2+ 49. Kg1 f2+ 50. Kf1 Ra2 51. Rf5+ Kg7 52. Rc7+ Kg6 53. Rg5+ Kf6 54. Rc6+ Kf7 55. Rf5+ Ke7 56. Rc7+ Ke6 57. Rf6+ {[%mdl 64] Decoy} Kxf6 58. Rc6+ Ke7 59. Rc7+ Kd6 60. Rd7+ Kxd7 61. a4 Rh1+ 62. Kg2 f1=Q#) 0-1

[Event "Saint Louis Super Swiss 2023"]
[Site "Saint Louis"]
[Date "2023.03.17"]
[Round "9.1"]
[White "Jacobson, Brandon"]
[Black "Quesada Perez, Yasser"]
[Result "1-0"]
[ECO "E06"]
[WhiteElo "2543"]
[BlackElo "2604"]
[Annotator "TA"]
[PlyCount "125"]
[EventDate "2023.03.12"]
[EventType "swiss"]
[EventCountry "USA"]
[TimeControl "5400+30"]

{[%evp 12,125,5,6,15,15,20,24,21,28,33,28,25,26,23,23,18,19,20,19,32,38,35,18,18,5,26,0,24,14,10,6,6,3,2,5,10,0,0,0,0,0,55,25,13,15,61,25,36,0,8,14,69,68,104,104,176,148,148,148,148,148,148,156,156,156,159,159,539,502,1403,1422,1326,1014,1602,0,399,0,1583,1652,1467,1402,1615,1582,1185,1082,29961,29963,29963,29965,29964,29966,29967,29968,29967,29968,29967,29968,29968,29970,29970,29971,29972,29974,29974,29973,29973,29974,29977,29978,29977,29978,29978,29979,29974,29977]} 1. Nf3 {[%emt 0:03:40]} d5 {[%emt 0:01:23]} 2. d4 {[%emt 0:00:18]} Nf6 {[%emt 0:00:19]} 3. c4 {[%emt 0:00:05]} e6 {[%emt 0:00:04]} 4. g3 {[%emt 0:00:57]} Be7 {[%emt 0:00:05]} 5. Bg2 {[%emt 0:00:06]} O-O {[%emt 0:00:05]} 6. Nc3 {[%emt 0:00:12]} c6 {[%emt 0:00:27]} 7. O-O {[%emt 0:00:39]} a5 {[%emt 0:00:06] E06: Closed Catalan: Early deviations.} 8. Re1 {[%emt 0:21:12]} Nbd7 {[%emt 0:15:35]} 9. Nd2 {[%emt 0:11:18]} e5 {[%emt 0:11:07] White has an edge.} 10. dxe5 {[%emt 0:02:19]} Nxe5 {[%emt 0:00:04]} 11. cxd5 {[%emt 0:00:05]} Nxd5 {[%emt 0:00:07]} 12. Nxd5 {[%emt 0:01:41]} cxd5 {[%emt 0:00:04]} 13. Nf3 {[%emt 0:00:15]} Nxf3+ {[%emt 0:10:34]} 14. Bxf3 {[%emt 0:00:03]} Be6 {[%emt 0:02:07]} 15. Be3 {[%emt 0:00:13]} Bf6 {[%emt 0:00:46]} 16. Bd4 {[%emt 0:00:37]} Rc8 {[%emt 0:00:18] [#]} 17. Bxf6 $146 {[%emt 0:10:55]} ({Predecessor:} 17. Qd2 Bxd4 18. Qxd4 Rc4 19. Qd2 Qb6 20. b3 Rb4 21. Red1 d4 22. Rac1 Rd8 23. Qf4 {1-0 Nguyen,T (2651)-Dvirnyy,D (2531) EU-ch 23rd Vrnjacka Banja 2023 (3)}) 17... Qxf6 {[%emt 0:00:16]} 18. Qb3 {[%emt 0:00:05]} d4 {[%emt 0:05:08]} 19. Qb5 {[%emt 0:01:19]} Qf5 {[%emt 0:18:07]} 20. Qxf5 {[%emt 0:21:52]} Bxf5 {[%emt 0:00:15]} 21. Bxb7 {[%emt 0:03:38]} Rb8 {[%emt 0:00:38]} 22. Bd5 {[%emt 0:00:04]} Rxb2 {[%emt 0:00:49]} 23. Rad1 {[%emt 0:00:03]} Rb4 {[%emt 0:14:00]} 24. a3 {[%emt 0:05:32]} Ra4 {[%emt 0:00:03]} 25. e4 {[%emt 0:00:03]} Be6 {[%emt 0:03:18]} 26. Rd3 {[%emt 0:01:28]} Rd8 {[%emt 0:00:05]} ({Black should play} 26... g5 $11) 27. Bxe6 $1 $14 {[%emt 0:03:58]} fxe6 {[%emt 0:00:05][%mdl 4096] Endgame KRR-KRR} 28. Rc1 {[%emt 0:00:02] Repels Rc8} Rd7 {[%emt 0:00:34] Dodges Rc7} (28... Kf7 $11) 29. Rc6 {[%emt 0:06:35]} Kf7 $1 {[%emt 0:00:11]} ({Don't do} 29... e5 30. Re6 $16) 30. e5 {[%emt 0:00:14]} Rd5 {[%emt 0:04:20]} 31. f4 {[%emt 0:00:50]} g5 {[%emt 0:00:11]} 32. Kf2 {[%emt 0:01:43] White is more active.} g4 {[%emt 0:00:16] [#] Black is on the road to losing.} 33. Rb3 $1 {[%emt 0:00:45] Prevents Rb5. Rb7+ is the strong threat.} Ke7 {[%emt 0:12:21]} (33... Rd7 $16) 34. Rbb6 {[%emt 0:00:52]} Rxa3 {[%emt 0:00:48]} 35. Rxe6+ {[%emt 0:00:03]} Kd7 {[%emt 0:01:09]} 36. Rbd6+ {[%emt 0:03:27]} Rxd6 {[%emt 0:00:05]} 37. Rxd6+ $16 {[%emt 0:00:02] KR-KR} Ke7 {[%emt 0:00:06]} 38. Rxd4 {[%emt 0:00:08]} h5 {[%emt 0:01:07]} 39. Ke2 {[%emt 0:00:35] [#] Threatens to win with Rd3.} h4 $2 {[%emt 0:01:05]} (39... Rf3 $16 {is a better chance.} 40. Rc4 Kd7) 40. gxh4 $18 {[%emt 0:01:52]} Rh3 {[%emt 0:00:01]} (40... a4 $142 41. Kd2 Ke6 42. Rd6+ Ke7) 41. Kf2 {[%emt 0:00:33]} Ke6 {[%emt 0:02:03]} 42. Rd6+ {[%emt 0:00:11]} Ke7 {[%emt 0:00:00]} 43. Rd4 $2 {[%emt 0:00:05]} (43. Kg2 Kf7 44. h5) 43... Ke6 $1 {[%emt 0:00:03][%cal Oe6f5]} 44. Rd6+ $2 {[%emt 0:00:23]} (44. Kg2) 44... Ke7 {[%emt 0:00:00]} 45. Kg2 {[%emt 0:00:06]} Rf3 {[%emt 0:00:34]} 46. Rd4 {[%emt 0:01:05]} Ke6 {[%emt 0:00:03]} 47. h5 {[%emt 0:00:45]} Kf5 {[%emt 0:01:28]} 48. h6 {[%emt 0:00:39] Threatening mate with Rd6.} Rh3 {[%emt 0:01:18]} 49. Rd6 {[%emt 0:00:10] White mates.} Kxf4 {[%emt 0:00:34]} 50. e6 {[%emt 0:00:10]} Rxh6 {[%emt 0:00:39]} 51. e7 {[%emt 0:00:03]} Rxd6 {[%emt 0:00:05]} 52. e8=Q {[%emt 0:00:05] KQ-KR} (52. e8=B {is a self mate.} Rd4 53. Kf2 a4 54. Ke2 Re4+ 55. Kd3 Rxe8 56. Kc4 Ra8 57. Kd4 a3 58. h4 a2 59. Kd5 a1=Q 60. Ke6 Qc3 61. Kd6 Ra6+ 62. Kd5 Ke3 63. h5 Qd4#) 52... Rd2+ {[%emt 0:00:32]} 53. Kf1 {[%emt 0:00:04]} Rd5 {[%emt 0:00:28]} 54. Qc6 {[%emt 0:00:35]} Rf5 {[%emt 0:00:14]} 55. Kg2 {[%emt 0:00:52]} Kg5 {[%emt 0:00:04]} 56. Qd6 {[%emt 0:00:16]} Kh5 {[%emt 0:01:08]} 57. Qd8 {[%emt 0:00:11]} a4 {[%emt 0:00:57]} 58. Qe8+ {[%emt 0:00:08]} Kg5 {[%emt 0:00:04]} 59. Qxa4 {[%emt 0:00:03]} Kh5 {[%emt 0:00:06]} 60. Qe8+ {[%emt 0:00:38]} Kg5 {[%emt 0:00:05]} 61. Qd8+ {[%emt 0:00:17]} Kh5 {[%emt 0:00:08]} 62. Qe7 {[%emt 0:00:04]} Kg6 {[%emt 0:00:32]} 63. Kg3 {[%emt 0:00:08] Weighted Error Value: White=0.36/Black=0.34} 1-0

[Event "Saint Louis Super Swiss 2023"]
[Site "Saint Louis"]
[Date "2023.03.16"]
[Round "9.2"]
[White "Yoo, Christopher Woojin"]
[Black "Raja Harshit"]
[Result "1/2-1/2"]
[ECO "E11"]
[WhiteElo "2591"]
[BlackElo "2498"]
[Annotator "TA"]
[PlyCount "47"]
[EventDate "2023.03.12"]
[EventType "swiss"]
[EventCountry "USA"]
[SourceTitle "playchess.com"]
[Source "ChessBase"]
[SourceQuality "1"]
[TimeControl "5400+30"]

{[%evp 16,47,0,-11,9,0,20,21,21,9,25,-27,-20,-40,-39,-54,-44,-80,-79,-68,-20,-17,-14,-25,-37,-145,-22,-45,0,-156,0,-35,0,-147]} 1. d4 {[%emt 0:00:10]} Nf6 {[%emt 0:06:11]} 2. c4 {[%emt 0:00:26]} e6 {[%emt 0:00:05]} 3. Nf3 {[%emt 0:00:06]} d5 {[%emt 0:00:10]} 4. g3 {[%emt 0:00:06]} Bb4+ {[%emt 0:00:28]} 5. Bd2 {[%emt 0:00:11]} Be7 {[%emt 0:00:10]} 6. Bg2 {[%emt 0:00:27]} O-O {[%emt 0:00:49]} 7. O-O {[%emt 0:00:16]} c6 {[%emt 0:00:07]} 8. Qc2 {[%emt 0:02:58]} b6 {[%emt 0:01:50]} 9. Bg5 {[%emt 0:01:36]} Nbd7 {[%emt 0:04:32] E11: Bogo-Indian.} 10. Nc3 {[%emt 0:03:10]} dxc4 {[%emt 0:13:00] [#]} 11. Nd2 $146 {[%emt 0:03:48][%csl LRc4,LRc6]} ({Predecessor:} 11. e4 Bb7 12. Rad1 a5 13. a4 h6 14. Bd2 b5 15. e5 Nd5 16. Nxd5 cxd5 17. axb5 {0-1 Hartnack,R (2077)-Ribeiro,R (1894) IECG CP.2005.P.00111}) 11... Ba6 {[%emt 0:04:32]} 12. Bxc6 {[%emt 0:07:57][%cal Oc2a4] [#] And now Qa4! would win.} Rc8 {[%emt 0:00:06]} 13. Qa4 {[%emt 0:01:11]} (13. Bg2 $142) 13... Nb8 $1 $11 {[%emt 0:02:01][%csl LRc6,LRd4]} 14. Bg2 {[%emt 0:01:37]} (14. Nxc4 $2 {loses.} Rxc6 15. Ne5 Rc8 $19) 14... Qxd4 {[%emt 0:07:32]} 15. Nde4 {[%emt 0:12:44]} Qd7 {[%emt 0:08:39]} 16. Qc2 {[%emt 0:00:08] [#]} Nxe4 $1 {[%emt 0:00:31]} 17. Nxe4 {[%emt 0:00:10]} f6 {[%emt 0:00:23]} (17... c3 $15 {deserves consideration.} 18. Rad1 (18. bxc3 f5 $17) 18... cxb2 19. Qxb2 Qe8) 18. Rad1 {[%emt 0:06:54]} Qc7 {[%emt 0:00:14]} 19. Be3 {[%emt 0:03:23]} (19. Bf4 $5 {[%cal Rf4c7]} e5 20. Be3 $15) 19... Bb7 {[%emt 0:05:13]} 20. Bh3 {[%emt 0:02:39]} (20. Nd6 $15 Bxg2 21. Nxc8 Bxf1 22. Nxe7+ Qxe7 23. Kxf1) 20... Qc6 {[%emt 0:00:47]} (20... f5 $17 21. Ng5 b5) 21. Bg2 {[%emt 0:00:09][%cal Oe4f6] Threatens to win with Nxf6+!} Qc7 {[%emt 0:00:19]} (21... Kh8 $15 22. Bf3 Qc7) 22. Bh3 $17 {[%emt 0:00:47]} Qc6 {[%emt 0:09:01]} (22... f5 $17 23. Ng5 b5) 23. Bg2 $15 {[%emt 0:00:06][%cal Oe4f6] Nxf6+! would be deadly.} Qc7 {[%emt 0:07:49]} (23... Kh8 $15 24. Bf3 Qc7) 24. Bh3 {[%emt 0:00:36] Weighted Error Value: White=0.19 (very precise) /Black=0.34} 1/2-1/2

[Event "Saint Louis Super Swiss 2023"]
[Site "Saint Louis"]
[Date "2023.03.16"]
[Round "9.3"]
[White "Moradiabadi, Elshan"]
[Black "Swiercz, Dariusz"]
[Result "1/2-1/2"]
[ECO "B12"]
[WhiteElo "2507"]
[BlackElo "2646"]
[Annotator "TA"]
[PlyCount "77"]
[EventDate "2023.03.12"]
[EventType "swiss"]
[EventCountry "USA"]
[SourceTitle "playchess.com"]
[Source "ChessBase"]
[SourceQuality "1"]
[TimeControl "5400+30"]

{[%evp 13,77,14,30,3,23,20,33,-41,-27,-56,-49,-43,-65,-118,-109,-103,-102,-138,-86,-85,-79,-133,-145,-142,-77,-106,-59,-37,0,0,15,0,0,0,7,0,19,15,8,35,13,15,33,36,21,32,37,30,40,39,69,37,25,49,41,17,25,9,34,30,25,0,28,0,27,0]} 1. e4 {[%emt 0:00:02] ChessBase II} c6 {[%emt 0:03:42]} 2. d4 {[%emt 0:00:04]} d5 {[%emt 0:00:04]} 3. e5 {[%emt 0:00:03]} Bf5 {[%emt 0:00:05]} 4. Nf3 {[%emt 0:00:03]} e6 {[%emt 0:00:04]} 5. Be2 {[%emt 0:00:02]} Ne7 {[%emt 0:00:06]} 6. O-O {[%emt 0:00:04]} c5 {[%emt 0:07:49]} 7. c4 {[%emt 0:00:18]} Nbc6 {[%emt 0:00:54]} 8. dxc5 {[%emt 0:00:36] next Nc3 is good for White. B12: Caro-Kann: Advance Variation.} d4 {[%emt 0:00:05] Inhibits Nc3.} 9. Qb3 {[%emt 0:16:33]} Qd7 {[%emt 0:02:29]} 10. Na3 {[%emt 0:07:11]} ({White should play} 10. Rd1 $1 $14) 10... Ng6 $15 {[%emt 0:03:51][%csl LRc5,LRe5]} 11. Nb5 {[%emt 0:08:09][%cal Of3d4]} Bxc5 {[%emt 0:00:40]} (11... Ngxe5 12. Nxe5 Nxe5 13. Bf4 $14) 12. Rd1 $1 {[%emt 0:00:01][%cal Of3d4] [#]} f6 $146 {[%emt 0:16:17]} ({Don't play} 12... Ngxe5 13. Nxe5 Nxe5 14. Qg3 $14) ({But not} 12... Ncxe5 13. Nfxd4 Qe7 14. Nxf5 exf5 15. Be3 $16) ({Predecessor:} 12... Ngxe5 13. Nxe5 Nxe5 14. Qg3 f6 15. Be3 O-O 16. Nxd4 Qe7 17. Nxf5 exf5 18. Rd5 Bxe3 19. Qxe3 {½-½ Ragger,M (2697)-Tari,A (2584) Tata Steel-B 79th 2017 (9)}) 13. exf6 {[%emt 0:09:45]} (13. Nd6+ $15 Bxd6 14. exd6 Qxd6 15. Qxb7) 13... gxf6 $17 {[%emt 0:01:26]} 14. Qa4 {[%emt 0:04:56] aiming for b4.} e5 {[%emt 0:04:08]} 15. a3 {[%emt 0:00:11]} O-O {[%emt 0:15:10]} (15... a6 $142 $1 {[%cal Ra6b5]} 16. b4 axb5 17. Qxa8+ Kf7 18. Qxh8 Nxh8 19. cxb5 Nxb4 20. axb4 Bxb4) 16. b4 {[%emt 0:00:31]} Be7 {[%emt 0:00:05]} 17. Bh6 {[%emt 0:00:21]} (17. Nc3 $142) 17... Rfd8 $1 {[%emt 0:07:48]} 18. c5 {[%emt 0:01:30] [#]} Be6 {[%emt 0:00:35] Prevents Qb3.} (18... Kh8 $142 $1 19. Qb3 Be6) 19. Qc2 {[%emt 0:00:27] [#]} a6 {[%emt 0:06:53]} ({Black should try} 19... Kh8 $1 $17 20. Nc3 f5) 20. Nc3 $15 {[%emt 0:00:12]} Bf8 {[%emt 0:00:04]} (20... Rab8 $5 {[%cal Rg8h8]}) 21. Ne4 $1 {[%emt 0:00:20]} Qe7 {[%emt 0:00:24]} 22. Bd2 {[%emt 0:02:36]} Qf7 {[%emt 0:08:55]} 23. Bd3 {[%emt 0:02:31]} Kh8 {[%emt 0:02:52]} 24. Rf1 {[%emt 0:01:33]} Be7 {[%emt 0:04:27]} 25. Ng3 {[%emt 0:03:10]} Bb3 {[%emt 0:01:56]} 26. Qb1 {[%emt 0:00:40]} Bd5 {[%emt 0:00:01]} 27. Be4 {[%emt 0:00:11]} Bxe4 {[%emt 0:01:28]} 28. Qxe4 {[%emt 0:00:02]} Qd5 {[%emt 0:00:07]} 29. Qf5 {[%emt 0:00:36]} Rg8 {[%emt 0:01:59]} 30. Rfe1 {[%emt 0:05:13]} Rad8 {[%emt 0:03:09]} 31. a4 {[%emt 0:03:06]} Qd7 {[%emt 0:01:16]} 32. Rac1 {[%emt 0:09:09] White is much more active.} ({Much weaker is} 32. b5 Nb8 $11) (32. h4 $5 {[%cal Rb4b5]}) 32... Qxf5 {[%emt 0:03:52]} 33. Nxf5 {[%emt 0:00:01]} Rd5 {[%emt 0:00:35]} 34. h4 {[%emt 0:02:55] h5 would be deadly.} h5 {[%emt 0:01:31]} 35. Re4 {[%emt 0:01:32]} Bf8 {[%emt 0:01:38]} 36. Ng3 {[%emt 0:00:51]} Be7 {[%emt 0:00:19]} 37. Nf5 {[%emt 0:01:28]} Bf8 {[%emt 0:00:01]} 38. Ng3 {[%emt 0:00:04]} Be7 {[%emt 0:00:04]} 39. Nf5 {[%emt 0:01:58] Weighted Error Value: White=0.12 (very precise) /Black=0.12 (very precise)} 1/2-1/2

[Event "Saint Louis Super Swiss 2023"]
[Site "Saint Louis"]
[Date "2023.03.17"]
[Round "9.4"]
[White "Escalante Ramirez, Brian Sebasti"]
[Black "Durarbayli, Vasif"]
[Result "1/2-1/2"]
[ECO "B90"]
[WhiteElo "2474"]
[BlackElo "2635"]
[Annotator "TA"]
[PlyCount "118"]
[EventDate "2023.03.12"]
[EventType "swiss"]
[EventCountry "USA"]
[TimeControl "5400+30"]

{[%evp 15,118,7,30,26,24,15,16,22,53,52,56,48,46,52,44,60,57,41,47,30,60,43,51,50,94,102,82,74,104,80,75,94,100,104,168,155,156,131,148,148,199,200,233,167,165,160,183,156,164,151,211,80,80,81,67,61,65,66,73,65,87,86,66,65,65,65,65,65,65,65,65,65,66,66,66,66,80,65,65,65,65,65,65,65,65,65,65,65,65,65,65,0,0,0,0,0,0,0,0,0,0,0,0,0,0]} 1. e4 {[%emt 0:05:02]} c5 {[%emt 0:00:11]} 2. Nf3 {[%emt 0:00:09]} d6 {[%emt 0:00:06]} 3. d4 {[%emt 0:00:04]} cxd4 {[%emt 0:00:04]} 4. Nxd4 {[%emt 0:00:03]} Nf6 {[%emt 0:00:05]} 5. Nc3 {[%emt 0:00:05]} a6 {[%emt 0:00:31]} 6. Be3 {[%emt 0:00:11]} e5 {[%emt 0:00:04]} 7. Nf3 {[%emt 0:00:22]} Be7 {[%emt 0:01:03]} 8. Bc4 {[%emt 0:00:07]} Be6 {[%emt 0:00:35]} 9. Bxe6 {[%emt 0:00:51] B90: Sicilian Najdorf: Unusual White 6th moves, 6 Be3 Ng4 and 6 Be3 e5.} fxe6 {[%emt 0:00:06]} 10. Ng5 {[%emt 0:00:03]} Qd7 {[%emt 0:00:05]} 11. Qf3 {[%emt 0:00:05]} Nc6 {[%emt 0:01:21]} 12. Qh3 {[%emt 0:00:04]} Nd8 {[%emt 0:00:07]} 13. O-O-O {[%emt 0:08:36]} h6 {[%emt 0:04:40]} 14. Bb6 $1 {[%emt 0:00:08]} O-O {[%emt 0:00:09]} 15. Bxd8 {[%emt 0:00:03]} hxg5 {[%emt 0:00:04]} 16. Bxe7 {[%emt 0:00:05]} Qxe7 {[%emt 0:00:03]} 17. Rd2 {[%emt 0:00:06]} b5 {[%emt 0:06:37]} 18. Qe3 {[%emt 0:00:03]} b4 {[%emt 0:00:23] [#]} 19. Nd1 $146 {[%emt 0:00:02]} ({Predecessor:} 19. Na4 Rac8 20. h3 Qe8 21. b3 Qg6 22. f3 Rc6 23. Nb2 Rfc8 24. Nc4 Ne8 25. Rhd1 {½-½ Nisipeanu,L (2633)-Petkov,M (2511) ROM-chT Oradea 2022 (3.20)}) 19... d5 {[%emt 0:00:57]} 20. exd5 {[%emt 0:05:40]} exd5 {[%emt 0:01:34]} 21. Qxg5 {[%emt 0:01:58]} Qe6 {[%emt 0:04:49]} 22. Qg6 {[%emt 0:13:55]} d4 {[%emt 0:13:45]} 23. Kb1 {[%emt 0:00:05]} a5 {[%emt 0:00:45]} 24. Re1 {[%emt 0:07:08]} (24. f3 {simplifies} Rae8 25. Re1 Nd5 26. Qxe6+ Rxe6 27. Rxd4 exd4 28. Rxe6 Nf4 29. Rd6) 24... Rad8 {[%emt 0:13:31]} (24... Rae8 $16) 25. f3 $18 {[%emt 0:02:19]} a4 {[%emt 0:02:51]} 26. Nf2 {[%emt 0:03:39]} b3 {[%emt 0:07:01]} 27. a3 {[%emt 0:00:03]} bxc2+ {[%emt 0:08:57]} (27... Rfe8 $16 28. Rde2 Qc4) 28. Rxc2 {[%emt 0:00:40]} Qd6 {[%emt 0:02:04]} 29. Ne4 {[%emt 0:04:01]} Nxe4 {[%emt 0:00:32]} 30. Qxe4 {[%emt 0:00:02]} Rfe8 {[%emt 0:00:11]} 31. Rc6 {[%emt 0:01:40]} Qd7 {[%emt 0:00:54]} 32. Rec1 {[%emt 0:04:52]} d3 {[%emt 0:00:43]} (32... Re6 $16 33. Rc7 Qe8) 33. Rd1 {[%emt 0:03:48]} (33. Qxa4 $18 {Strongly threatening Rd1.} Qf5 34. Qe4) 33... Qd4 $16 {[%emt 0:02:18]} 34. Rc3 {[%emt 0:24:29][%cal Re4d3]} (34. Rc4 {seems wilder.} Qf2 35. Qc6 Qxg2 36. Rh4) 34... Qxe4 {[%emt 0:00:11]} 35. fxe4 {[%emt 0:00:02][%mdl 4096] Endgame KRR-KRR} Rd4 {[%emt 0:00:05]} 36. Rdxd3 {[%emt 0:01:34]} Rxe4 {[%emt 0:00:06]} 37. Re3 {[%emt 0:00:02]} Rg4 {[%emt 0:05:46]} 38. g3 {[%emt 0:00:31] Black must now prevent Rc5.} Kf7 {[%emt 0:00:59]} 39. Rc6 {[%emt 0:05:19]} Re6 {[%emt 0:03:30]} 40. Rc7+ {[%emt 0:03:03]} Kg6 $1 {[%emt 0:00:17]} 41. Kc2 {[%emt 0:00:11] White is much more active.} Rd4 {[%emt 0:00:52]} 42. Rd3 {[%emt 0:02:46]} Rxd3 {[%emt 0:04:04]} 43. Kxd3 $14 {[%emt 0:00:02] KR-KR} e4+ {[%emt 0:00:04]} 44. Kd4 {[%emt 0:02:57]} e3 {[%emt 0:06:53] [#] ...e2 is the strong threat.} 45. Rc1 {[%emt 0:00:06]} Kf5 {[%emt 0:01:14] Hoping for ...e2.} 46. h3 {[%emt 0:02:15]} Rb6 {[%emt 0:01:05]} 47. Rc5+ {[%emt 0:00:55]} Kf6 {[%emt 0:00:41]} 48. Rc2 {[%emt 0:01:06]} (48. Kxe3 {simplifies} Rxb2 49. Rd5 Ra2 50. Rd3) 48... Rb3 {[%emt 0:00:23]} 49. Re2 {[%emt 0:03:11]} Kf5 $1 {[%emt 0:00:25]} 50. Rg2 {[%emt 0:00:24]} (50. Rxe3 {simplifies} Rxb2 51. Rf3+ Kg5 52. Kc4) 50... g6 {[%emt 0:02:32][%cal Bg7g6,Bg6g5][%mdl 32]} 51. Re2 {[%emt 0:00:17]} g5 $1 {[%emt 0:00:28]} 52. Rxe3 {[%emt 0:00:41]} Rxb2 {[%emt 0:00:05]} 53. g4+ {[%emt 0:00:36]} (53. Rf3+ $14 Ke6 54. g4) 53... Kf4 $11 {[%emt 0:00:51] [#] And now ...Rd2+ would win. The position is equal.} 54. Re4+ {[%emt 0:00:20]} Kg3 {[%emt 0:00:11]} 55. Ke5 {[%emt 0:00:18]} Kxh3 {[%emt 0:04:14]} 56. Rxa4 {[%emt 0:00:01]} (56. Kf5 $5 {[%cal Rf5g5]} Kh4 57. Kf6 $11 (57. Rxa4 Rf2+ 58. Kg6 Rg2 $11)) 56... Rb3 {[%emt 0:00:43]} 57. Kd5 {[%emt 0:00:34]} Rg3 {[%emt 0:00:32]} 58. Ke5 {[%emt 0:01:10]} Rf3 {[%emt 0:00:14]} 59. Kd6 {[%emt 0:00:32]} Rg3 {[%emt 0:00:26] Black defended with fortune.   Weighted Error Value: White=0.10 (very precise) /Black=0.11 (very precise)} 1/2-1/2